bitfinex-derivatives/quotes_BTCF0:USTF0_20220102
["timestamp","ask_amount","ask_price","bid_price","bid_amount"]
[1641136149180,0.009794,47215.0,47208.0,0.0844]
[1641136149881,0.02118573,47212.0,47208.0,0.0844]
[1641136150080,0.02118573,47212.0,47205.0,0.14033567]
[1641136150280,0.009794,47215.0,47205.0,0.14033567]
[1641136150481,0.009794,47215.0,47207.0,0.12]
[1641136150682,0.009794,47215.0,47205.0,0.14033567]
[1641136150881,0.03097865,47215.0,47205.0,0.14033567]
[1641136151281,0.21797865,47215.0,47205.0,0.14033567]
[1641136151480,0.196794,47215.0,47213.0,0.02117718]
[1641136151682,0.196794,47215.0,47213.0,0.06253]
[1641136152681,0.009794,47215.0,47213.0,0.06253]
[1641136152882,0.009794,47215.0,47205.0,0.14033567]
[1641136153383,0.197794,47215.0,47206.0,0.18]
[1641136153583,0.197794,47215.0,47205.0,0.14033567]
[1641136153787,0.02118525,47213.0,47205.0,0.14033567]
[1641136154186,0.14033567,47211.0,47207.0,0.18]
[1641136154388,0.14033567,47211.0,47207.0,0.26947]
[1641136154986,0.14033567,47211.0,47207.0,0.08947]
[1641136155388,0.38505567,47211.0,47205.0,0.14033567]
[1641136155988,0.38505567,47211.0,47206.0,0.12038675]
[1641136156588,0.32633567,47211.0,47210.0,0.18]
[1641136156787,0.009794,47215.0,47210.0,0.24367]
[1641136157188,0.009794,47215.0,47210.0,0.06367]
[1641136157388,0.147794,47215.0,47214.0,0.18]
[1641136157988,0.147794,47215.0,47214.0,0.30038675]
[1641136158188,0.147794,47215.0,47214.0,0.12038675]
[1641136158388,0.147794,47215.0,47212.0,0.12099127]
[1641136158587,0.009794,47215.0,47210.0,0.14033567]
[1641136158989,0.009794,47215.0,47211.0,0.12037891]
[1641136159389,0.181794,47215.0,47211.0,0.12037891]
[1641136160689,0.009794,47215.0,47211.0,0.12037891]
[1641136161293,0.187794,47215.0,47211.0,0.12037891]
[1641136161692,0.187794,47215.0,47213.0,0.18]
[1641136162691,0.009794,47215.0,47214.0,0.1203713]
[1641136163093,0.009794,47215.0,47214.0,0.12]
[1641136163296,0.184794,47215.0,47214.0,0.24037243]
[1641136163597,0.184794,47215.0,47214.0,0.32925243]
[1641136163796,0.184794,47215.0,47214.0,0.20925243]
[1641136164196,0.184794,47215.0,47214.0,0.20888]
[1641136164600,0.009794,47215.0,47214.0,0.20888]
[1641136164797,0.009794,47215.0,47214.0,0.12]
[1641136165297,0.195794,47215.0,47214.0,0.12]
[1641136165897,0.195794,47215.0,47210.0,0.14033567]
[1641136166598,0.009794,47215.0,47211.0,0.18]
[1641136166997,0.009794,47215.0,47210.0,0.14033567]
[1641136167398,0.190794,47215.0,47211.0,0.18]
[1641136167597,0.190794,47215.0,47210.0,0.14033567]
[1641136167797,0.190794,47215.0,47211.0,0.18]
[1641136168597,0.009794,47215.0,47211.0,0.18]
[1641136169399,0.189794,47215.0,47210.0,0.14033567]
[1641136169701,0.189794,47215.0,47211.0,0.18]
[1641136170299,0.189794,47215.0,47210.0,0.14033567]
[1641136170900,0.266224,47215.0,47210.0,0.14033567]
[1641136171199,0.086224,47215.0,47210.0,0.14033567]
[1641136171398,0.273224,47215.0,47210.0,0.14033567]
[1641136171598,0.273224,47215.0,47206.0,0.35810483]
[1641136171800,0.273224,47215.0,47206.0,0.35710483]
[1641136171999,0.26343,47215.0,47208.0,0.18]
[1641136172203,0.26343,47215.0,47206.0,0.35710483]
[1641136172400,0.26343,47215.0,47205.0,0.32033567]
[1641136172601,0.26343,47215.0,47205.0,0.14033567]
[1641136172800,0.07643,47215.0,47205.0,0.32033567]
[1641136173302,0.19,47215.0,47208.0,0.18]
[1641136173502,0.19,47215.0,47205.0,0.14033567]
[1641136173702,0.19,47215.0,47211.0,0.18]
[1641136173904,0.19,47215.0,47213.0,0.18]
[1641136174303,0.19,47215.0,47209.0,0.18]
[1641136174706,0.14033567,47216.0,47206.0,0.18]
[1641136175303,0.32833567,47216.0,47206.0,0.18]
[1641136175504,0.32833567,47216.0,47205.0,0.7268004]
[1641136176306,0.32833567,47216.0,47205.0,0.14033567]
[1641136176706,0.009794,47215.0,47203.0,0.58646473]
[1641136176908,0.02118577,47212.0,47203.0,0.58646473]
[1641136177109,0.02118836,47206.0,47203.0,0.58646473]
[1641136177309,0.02118836,47206.0,47202.0,0.58646473]
[1641136177310,0.09542836,47206.0,47202.0,0.58646473]
[1641136177909,0.09542836,47206.0,47202.0,0.76646473]
[1641136178111,0.09542836,47206.0,47202.0,0.58646473]
[1641136178307,0.14033567,47203.0,47202.0,0.58646473]
[1641136178507,0.16152599,47203.0,47202.0,0.58646473]
[1641136178707,0.16152599,47203.0,47191.0,0.18]
[1641136179309,0.34652599,47203.0,47191.0,0.18]
[1641136180409,0.14033567,47196.0,47191.0,0.18]
[1641136181408,0.32633567,47196.0,47187.0,0.58646473]
[1641136181613,0.32633567,47196.0,47194.0,0.18]
[1641136182415,0.32633567,47196.0,47190.0,0.35413478]
[1641136182717,0.14033567,47196.0,47190.0,0.35413478]
[1641136182917,0.14033567,47196.0,47189.0,0.35413478]
[1641136183416,0.32933567,47196.0,47189.0,0.35413478]
[1641136184618,0.32933567,47196.0,47188.0,0.18]
[1641136184816,0.10093975,47195.0,47188.0,0.18]
[1641136185118,0.009794,47194.0,47188.0,0.18]
[1641136185918,0.03098785,47194.0,47188.0,0.18]
[1641136186518,0.03098785,47194.0,47193.0,0.35577726]
[1641136187317,0.21598785,47194.0,47193.0,0.35577726]
[1641136188628,0.17132352,47194.0,47189.0,0.18]
[1641136189228,0.17132352,47194.0,47181.0,1.54785101]
[1641136189431,0.35732352,47194.0,47193.0,0.35583499]
[1641136190635,0.17132352,47194.0,47193.0,0.35583499]
[1641136191332,0.35732352,47194.0,47193.0,0.35583499]
[1641136191733,0.35732352,47194.0,47182.0,0.35583499]
[1641136192633,0.14033567,47189.0,47181.0,0.14033567]
[1641136193034,0.14033567,47189.0,47188.0,0.18]
[1641136193232,0.14033567,47189.0,47188.0,0.07277]
[1641136193432,0.32933567,47189.0,47188.0,0.07277]
[1641136193833,0.32933567,47189.0,47188.0,0.25277]
[1641136194637,0.32933567,47189.0,47188.0,0.07277]
[1641136194838,0.14033567,47189.0,47181.0,0.14033567]
[1641136195035,0.14033567,47189.0,47185.0,0.18]
[1641136195438,0.32733567,47189.0,47185.0,0.18]
[1641136197539,0.32733567,47189.0,47183.0,0.06206]
[1641136198142,0.32733567,47189.0,47185.0,0.18]
[1641136198639,0.14033567,47189.0,47185.0,0.18]
[1641136199138,0.009794,47188.0,47181.0,0.14033567]
[1641136199540,0.009794,47188.0,47178.0,0.18]
[1641136199741,0.009794,47188.0,47177.0,0.35583499]
[1641136199939,0.009794,47188.0,47178.0,0.12]
[1641136200143,0.009794,47188.0,47185.0,0.18]
[1641136200340,0.32633567,47189.0,47185.0,0.2694]
[1641136200542,0.32633567,47189.0,47188.0,0.18]
[1641136200745,0.14033567,47189.0,47188.0,0.18]
[1641136201342,0.33233567,47189.0,47188.0,0.18]
[1641136202644,0.14033567,47189.0,47188.0,0.18]
[1641136202843,0.14033567,47194.0,47188.0,0.18]
[1641136203044,0.14033567,47196.0,47185.0,0.0894]
[1641136203347,0.19,47194.0,47190.0,0.18]
[1641136203545,0.19,47194.0,47193.0,0.18]
[1641136203946,0.19,47194.0,47190.0,0.18]
[1641136204347,0.19,47194.0,47185.0,0.0894]
[1641136204746,0.009794,47195.0,47185.0,0.0894]
[1641136204947,0.009794,47195.0,47191.0,0.14033567]
[1641136205345,0.197794,47195.0,47191.0,0.14033567]
[1641136205546,0.197794,47195.0,47192.0,0.18]
[1641136206648,0.009794,47195.0,47192.0,0.18]
[1641136207447,0.197794,47195.0,47192.0,0.18]
[1641136207647,0.197794,47195.0,47191.0,0.14033567]
[1641136208552,0.009794,47195.0,47191.0,0.14033567]
[1641136208850,0.009794,47195.0,47185.0,0.0894]
[1641136209049,0.02119452,47193.0,47184.0,0.18]
[1641136209453,0.02119452,47193.0,47185.0,0.119]
[1641136210051,0.02119452,47193.0,47189.0,0.18]
[1641136210553,0.02119452,47193.0,47185.0,0.119]
[1641136210752,0.02119452,47193.0,47189.0,0.18]
[1641136210951,0.16153019,47193.0,47189.0,0.18]
[1641136211156,0.16153019,47193.0,47181.0,0.22472567]
[1641136211354,0.35253019,47193.0,47186.0,0.18]
[1641136211553,0.35253019,47193.0,47189.0,0.18]
[1641136211956,0.35253019,47193.0,47186.0,0.18]
[1641136212555,0.35253019,47193.0,47181.0,0.22472567]
[1641136212758,0.35253019,47193.0,47181.0,0.14033567]
[1641136212956,0.35253019,47193.0,47181.0,0.32033567]
[1641136213356,0.54153019,47193.0,47181.0,0.32033567]
[1641136213761,0.54153019,47193.0,47187.0,0.18]
[1641136214162,0.09822933,47192.0,47187.0,0.18]
[1641136214360,0.09822933,47192.0,47181.0,0.14033567]
[1641136214961,0.09822933,47192.0,47182.0,0.18]
[1641136215362,0.28622933,47192.0,47190.0,0.82973978]
[1641136215764,1.60077569,47192.0,47190.0,0.82973978]
[1641136216766,1.41277569,47192.0,47190.0,0.82973978]
[1641136216965,0.02119603,47191.0,47190.0,0.82973978]
[1641136217165,0.02119603,47191.0,47189.0,0.82973978]
[1641136217465,0.009794,47190.0,47189.0,0.82973978]
[1641136219569,0.3980102,47190.0,47189.0,0.82973978]
[1641136219970,0.3980102,47190.0,47189.0,0.35608432]
[1641136220276,0.41920815,47190.0,47189.0,0.35608432]
[1641136220470,0.41920815,47190.0,47187.0,0.35608432]
[1641136220672,0.22920815,47190.0,47187.0,0.35608432]
[1641136221372,0.41420815,47190.0,47187.0,0.35608432]
[1641136222080,0.41420815,47190.0,47186.0,0.35608432]
[1641136222680,0.22920815,47190.0,47186.0,0.35608432]
[1641136223284,0.41720815,47190.0,47186.0,0.35608432]
[1641136223482,1.73175451,47190.0,47186.0,0.35608432]
[1641136224784,0.22920815,47190.0,47186.0,0.35608432]
[1641136225084,1.54375451,47190.0,47186.0,0.35608432]
[1641136225284,1.73175451,47190.0,47186.0,0.35608432]
[1641136226584,1.54375451,47190.0,47186.0,0.35608432]
[1641136227086,0.22920815,47190.0,47187.0,0.35608432]
[1641136227485,0.41620815,47190.0,47187.0,0.35608432]
[1641136227985,0.21799195,47190.0,47186.0,0.35608432]
[1641136228888,0.03099195,47190.0,47186.0,0.35608432]
[1641136229288,1.34553831,47190.0,47185.0,0.53608432]
[1641136229486,1.53253831,47190.0,47185.0,0.53608432]
[1641136230187,1.53253831,47190.0,47187.0,0.18]
[1641136230787,1.34553831,47190.0,47187.0,0.18]
[1641136230988,0.03099195,47190.0,47187.0,0.53608432]
[1641136231186,0.03099195,47190.0,47187.0,0.35608432]
[1641136231389,0.21799195,47190.0,47187.0,0.35608432]
[1641136232688,0.03099195,47190.0,47187.0,0.35608432]
[1641136233388,0.22099195,47190.0,47187.0,0.35608432]
[1641136233689,0.22099195,47190.0,47189.0,0.18]
[1641136234691,0.22099195,47190.0,47187.0,0.53608432]
[1641136234889,0.03099195,47190.0,47187.0,0.53608432]
[1641136235089,0.03099195,47190.0,47189.0,0.18]
[1641136235490,0.21899195,47190.0,47189.0,0.18]
[1641136236492,0.21899195,47190.0,47187.0,0.35608432]
[1641136236892,0.03099195,47190.0,47187.0,0.35608432]
[1641136237293,0.03099195,47190.0,47187.0,0.53608432]
[1641136237492,0.21899195,47190.0,47187.0,0.53608432]
[1641136237694,1.31454636,47189.0,47188.0,0.59334569]
[1641136239093,1.31454636,47189.0,47188.0,0.77334569]
[1641136239493,1.50354636,47189.0,47188.0,0.53616618]
[1641136240094,1.50354636,47189.0,47188.0,0.18]
[1641136240493,0.189,47189.0,47188.0,0.18]
[1641136240693,1.34553831,47190.0,47188.0,0.18]
[1641136240894,1.34553831,47190.0,47187.0,0.59334569]
[1641136241296,1.34553831,47190.0,47188.0,0.3561545]
[1641136241497,1.53453831,47190.0,47188.0,0.3561545]
[1641136242895,1.31454636,47189.0,47188.0,0.3561545]
[1641136243096,1.31454636,47189.0,47188.0,0.4761545]
[1641136243295,1.31454636,47189.0,47188.0,0.4161545]
[1641136243495,1.50154636,47189.0,47188.0,0.5361545]
[1641136243696,1.50154636,47189.0,47188.0,0.3561545]
[1641136244797,1.31454636,47189.0,47188.0,0.3561545]
[1641136244996,1.31454636,47189.0,47187.0,0.3561545]
[1641136245198,0.05651714,47188.0,47187.0,0.3561545]
[1641136247301,0.19685281,47188.0,47187.0,0.3561545]
[1641136247501,0.38285281,47188.0,47187.0,0.3561545]
[1641136248803,0.19685281,47188.0,47187.0,0.3561545]
[1641136249406,0.38285281,47188.0,47187.0,0.3561545]
[1641136250806,0.27975281,47188.0,47187.0,0.3561545]
[1641136251405,0.46775281,47188.0,47187.0,0.3561545]
[1641136251806,0.46775281,47188.0,47185.0,0.52562973]
[1641136252110,0.46675281,47188.0,47186.0,0.356782]
[1641136252305,0.001,47187.0,47186.0,0.356782]
[1641136253206,1.43524697,47187.0,47179.0,0.82973978]
[1641136253405,0.14033567,47180.0,47179.0,0.82973978]
[1641136253806,0.21425788,47180.0,47179.0,0.82973978]
[1641136255408,0.39925788,47180.0,47179.0,0.82973978]
[1641136255710,0.39925788,47180.0,47176.0,1.00973978]
[1641136256507,0.39925788,47180.0,47176.0,0.18]
[1641136256908,0.21425788,47180.0,47175.0,0.82973978]
[1641136257110,0.21425788,47180.0,47177.0,0.18]
[1641136257511,0.40325788,47180.0,47177.0,0.18]
[1641136259408,0.54459355,47180.0,47179.0,0.18]
[1641136259811,0.54459355,47180.0,47179.0,0.24932]
[1641136260011,1.32493742,47187.0,47179.0,0.24932]
[1641136260208,1.32493742,47187.0,47186.0,0.18]
[1641136261211,0.02119542,47191.0,47186.0,0.18]
[1641136261412,0.02119542,47191.0,47190.0,0.18]
[1641136261611,0.02119542,47191.0,47190.0,0.24723]
[1641136263310,0.02119542,47191.0,47190.0,0.18]
[1641136263510,0.02119542,47191.0,47190.0,0.365]
[1641136264612,0.11223615,47191.0,47190.0,0.365]
[1641136264812,0.11223615,47191.0,47190.0,0.18]
[1641136265214,0.11223615,47191.0,47190.0,0.24586]
[1641136265613,0.29523615,47191.0,47190.0,0.42786]
[1641136267415,0.11223615,47191.0,47190.0,0.24586]
[1641136267618,0.29323615,47191.0,47190.0,0.42986]
[1641136268819,0.11223615,47191.0,47190.0,0.24586]
[1641136269519,0.11223615,47191.0,47190.0,0.42986]
[1641136269520,0.29323615,47191.0,47190.0,0.42986]
[1641136270641,0.27204073,47191.0,47190.0,0.42986]
[1641136270839,0.09104073,47191.0,47190.0,0.24586]
[1641136271642,0.09104073,47191.0,47190.0,0.43386]
[1641136272846,0.09104073,47191.0,47190.0,0.24586]
[1641136273543,0.09104073,47191.0,47190.0,0.43586]
[1641136274845,1.32493742,47197.0,47190.0,0.24586]
[1641136275046,1.32493742,47197.0,47196.0,0.18]
[1641136275546,1.48693742,47197.0,47196.0,0.366]
[1641136275947,0.162,47197.0,47196.0,0.366]
[1641136276849,1.32493742,47200.0,47196.0,0.18]
[1641136277050,1.32493742,47199.0,47196.0,0.18]
[1641136277654,0.02119265,47197.0,47196.0,0.184]
[1641136279053,1.34613007,47197.0,47194.0,0.14033567]
[1641136279254,0.2837186,47196.0,47188.0,0.35626232]
[1641136279455,0.02119821,47195.0,47188.0,0.35626232]
[1641136279656,0.02119821,47195.0,47194.0,0.153]
[1641136279957,0.09071719,47195.0,47194.0,0.153]
[1641136280957,0.09071719,47195.0,47193.0,0.18]
[1641136281455,1.32391082,47194.0,47193.0,0.18]
[1641136281655,1.32391082,47194.0,47193.0,0.346]
[1641136281857,1.32391082,47194.0,47193.0,0.166]
[1641136282458,1.32391082,47194.0,47193.0,0.346]
[1641136282862,1.32391082,47194.0,47193.0,0.166]
[1641136283060,1.32391082,47194.0,47189.0,0.14033567]
[1641136283260,1.32391082,47194.0,47193.0,0.18]
[1641136283660,1.49591082,47194.0,47193.0,0.18]
[1641136284563,0.172,47194.0,47193.0,0.18]
[1641136285061,0.09071719,47195.0,47193.0,0.18]
[1641136285263,0.09071719,47195.0,47189.0,0.14033567]
[1641136285663,0.27271719,47195.0,47193.0,0.178]
[1641136286667,1.59662801,47195.0,47193.0,0.178]
[1641136287165,1.41462801,47195.0,47189.0,0.14033567]
[1641136287566,1.59962801,47195.0,47193.0,0.158]
[1641136287766,1.59962801,47195.0,47193.0,0.338]
[1641136287969,0.021194,47194.0,47193.0,0.42207]
[1641136288989,0.021194,47194.0,47193.0,0.26407]
[1641136289171,0.021194,47194.0,47193.0,0.18]
[1641136289570,0.200194,47194.0,47193.0,0.345]
[1641136290172,0.200194,47194.0,47193.0,0.165]
[1641136290881,0.021194,47194.0,47190.0,0.18]
[1641136291582,0.191194,47194.0,47190.0,0.364]
[1641136292984,0.021194,47194.0,47190.0,0.18]
[1641136293384,0.021194,47194.0,47189.0,0.14033567]
[1641136293584,0.191194,47194.0,47191.0,0.18]
[1641136294785,0.17,47194.0,47192.0,0.18]
[1641136294987,0.06951898,47195.0,47192.0,0.18]
[1641136295587,0.24151898,47195.0,47192.0,0.353]
[1641136296490,0.24151898,47195.0,47192.0,0.173]
[1641136296899,0.02119592,47193.0,47192.0,0.18]
[1641136297691,0.19619592,47193.0,47192.0,0.356]
[1641136298192,0.175,47193.0,47192.0,0.356]
[1641136298691,0.19619493,47193.0,47192.0,0.356]
[1641136299092,0.02119493,47193.0,47192.0,0.18]
[1641136299798,0.19619493,47193.0,47192.0,0.176]
[1641136300094,0.20699272,47193.0,47192.0,0.176]
[1641136300294,0.20699272,47193.0,47188.0,0.82973978]
[1641136300501,0.001,47189.0,47188.0,0.82973978]
[1641136300694,0.07133,47189.0,47188.0,0.82973978]
[1641136300894,0.07133,47189.0,47188.0,0.59267623]
[1641136301098,0.14938836,47189.0,47188.0,0.59267623]
[1641136301696,0.48172403,47189.0,47188.0,0.59267623]
[1641136302196,0.48172403,47189.0,47187.0,0.82973978]
[1641136302395,0.001,47188.0,47185.0,0.18]
[1641136302694,0.42018803,47189.0,47182.0,0.82973978]
[1641136302893,0.22818803,47189.0,47182.0,0.82973978]
[1641136303094,1.44563705,47187.0,47181.0,0.82973978]
[1641136303696,1.63863705,47187.0,47181.0,0.82973978]
[1641136303897,1.32519574,47183.0,47180.0,0.82973978]
[1641136304296,1.32519574,47183.0,47182.0,0.18]
[1641136304494,1.32519574,47183.0,47180.0,0.82973978]
[1641136304694,1.32519574,47183.0,47182.0,0.18]
[1641136304895,1.32519574,47183.0,47182.0,0.24468]
[1641136305495,1.47532541,47189.0,47182.0,0.24468]
[1641136305695,0.188,47183.0,47182.0,0.06468]
[1641136305897,0.188,47183.0,47182.0,0.24468]
[1641136306397,0.28962092,47183.0,47182.0,0.24468]
[1641136306997,0.10162092,47183.0,47182.0,0.24468]
[1641136307696,0.29162092,47183.0,47182.0,0.24468]
[1641136309000,0.10162092,47183.0,47182.0,0.24468]
[1641136309598,0.29062092,47183.0,47182.0,0.24468]
[1641136311200,0.10162092,47183.0,47182.0,0.24468]
[1641136311801,0.29162092,47183.0,47182.0,0.24468]
[1641136313702,0.48262092,47183.0,47182.0,0.24468]
[1641136314903,0.10162092,47183.0,47182.0,0.24468]
[1641136315703,0.29162092,47183.0,47182.0,0.24468]
[1641136316708,0.89337651,47183.0,47182.0,0.24468]
[1641136317105,0.70337651,47183.0,47182.0,0.24468]
[1641136317706,0.89537651,47183.0,47182.0,0.24468]
[1641136319210,0.70337651,47183.0,47182.0,0.24468]
[1641136319608,0.10162092,47183.0,47182.0,0.60014128]
[1641136319807,0.27662092,47183.0,47182.0,0.60014128]
[1641136320012,0.27662092,47183.0,47182.0,0.78014128]
[1641136320408,0.27662092,47183.0,47182.0,0.42468]
[1641136320612,0.27662092,47183.0,47182.0,1.0170568]
[1641136321010,0.10162092,47183.0,47182.0,1.0170568]
[1641136321211,0.60175559,47187.0,47182.0,1.0170568]
[1641136321409,0.60175559,47187.0,47186.0,0.18]
[1641136321611,0.60175559,47188.0,47186.0,0.18]
[1641136321813,0.183,47187.0,47186.0,0.18]
[1641136322210,0.27940526,47187.0,47186.0,0.32033567]
[1641136323014,0.09640526,47187.0,47186.0,0.32033567]
[1641136323811,0.28040526,47187.0,47186.0,0.67510567]
[1641136324012,0.15650526,47187.0,47186.0,0.67510567]
[1641136324814,0.15650526,47187.0,47186.0,0.32033567]
[1641136325012,0.60175559,47190.0,47186.0,0.32033567]
[1641136325213,0.07479758,47187.0,47186.0,0.14033567]
[1641136325413,0.07479758,47187.0,47186.0,0.32033567]
[1641136325815,0.24979758,47187.0,47186.0,0.50633567]
[1641136327316,0.07479758,47187.0,47186.0,0.32033567]
[1641136327715,0.24979758,47187.0,47186.0,0.50633567]
[1641136329721,1.32519574,47192.0,47186.0,0.52852463]
[1641136329920,0.60134233,47193.0,47191.0,1.49518723]
[1641136330119,1.32295314,47200.0,47192.0,1.57467134]
[1641136330320,1.32295314,47200.0,47199.0,0.36]
[1641136331120,1.32295314,47200.0,47199.0,0.18]
[1641136331322,1.55376755,47211.0,47199.0,0.36]
[1641136331527,0.15012967,47213.0,47210.0,0.18]
[1641136331821,0.15012967,47213.0,47210.0,0.25756]
[1641136333222,0.14033567,47213.0,47210.0,0.25756]
[1641136333823,0.14033567,47213.0,47210.0,0.45056]
[1641136335024,0.14033567,47213.0,47210.0,0.25756]
[1641136335826,0.14033567,47213.0,47210.0,0.44956]
[1641136336728,0.021185,47214.0,47210.0,0.44956]
[1641136336928,1.32255321,47216.0,47213.0,0.36]
[1641136337333,1.15175321,47216.0,47213.0,0.36]
[1641136337529,0.14033567,47223.0,47213.0,0.36]
[1641136337830,1.32241074,47220.0,47215.0,0.18]
[1641136338028,1.32241074,47220.0,47219.0,0.18]
[1641136338528,0.14033567,47223.0,47219.0,0.18]
[1641136338732,0.05389655,47220.0,47215.0,0.18]
[1641136338930,0.05389655,47220.0,47219.0,0.18]
[1641136339734,0.05389655,47220.0,47219.0,0.372]
[1641136341136,0.05389655,47220.0,47219.0,0.18]
[1641136341737,0.05389655,47220.0,47219.0,0.37]
[1641136342337,0.05389655,47220.0,47219.0,0.55]
[1641136342536,0.05389655,47220.0,47219.0,0.37]
[1641136342742,0.05389655,47220.0,47219.0,0.55]
[1641136343237,0.02118033,47224.0,47219.0,0.36]
[1641136343437,0.02118033,47224.0,47223.0,0.18]
[1641136343637,0.02118033,47224.0,47223.0,0.24528]
[1641136343836,0.02117845,47228.0,47223.0,0.24528]
[1641136344041,0.02117845,47228.0,47227.0,0.18]
[1641136345040,0.12625167,47228.0,47227.0,0.18]
[1641136345846,0.12625167,47228.0,47227.0,0.369]
[1641136346246,0.12625167,47228.0,47227.0,0.189]
[1641136347247,0.10507322,47228.0,47227.0,0.189]
[1641136349251,0.10507322,47228.0,47226.0,0.18]
[1641136349753,0.10507322,47228.0,47226.0,0.368]
[1641136351054,0.10507322,47228.0,47226.0,0.18]
[1641136351855,0.10507322,47228.0,47226.0,0.369]
[1641136353258,0.10507322,47228.0,47226.0,0.18]
[1641136353858,0.10507322,47228.0,47226.0,0.37]
[1641136354058,0.10507322,47228.0,47226.0,0.19]
[1641136354459,0.12625174,47228.0,47226.0,0.19]
[1641136354658,0.18514346,47227.0,47226.0,0.19]
[1641136354858,0.18514547,47227.0,47214.0,0.14033567]
[1641136355059,0.16397189,47224.0,47214.0,0.14033567]
[1641136355260,0.02118557,47215.0,47214.0,0.14033567]
[1641136355462,0.10420557,47215.0,47214.0,0.14033567]
[1641136355858,0.28820557,47215.0,47214.0,0.32033567]
[1641136356460,0.36608391,47215.0,47214.0,0.32033567]
[1641136357060,0.18208391,47215.0,47214.0,0.14033567]
[1641136357861,0.18208391,47215.0,47214.0,0.32733567]
[1641136358462,0.09906391,47215.0,47214.0,0.32733567]
[1641136359063,0.07787834,47215.0,47214.0,0.32733567]
[1641136359264,0.07787834,47215.0,47214.0,0.14033567]
[1641136359863,0.07787834,47215.0,47214.0,0.187]
[1641136361065,0.07787834,47215.0,47213.0,0.18]
[1641136361466,0.07787834,47215.0,47214.0,0.18]
[1641136361869,0.25687834,47215.0,47214.0,0.18]
[1641136362267,0.25687834,47215.0,47213.0,0.179]
[1641136362871,0.25687834,47215.0,47214.0,0.18]
[1641136363273,0.07787834,47215.0,47214.0,0.18]
[1641136363968,0.25987834,47215.0,47214.0,0.357]
[1641136365170,0.07787834,47215.0,47214.0,0.18]
[1641136365971,0.26687834,47215.0,47214.0,0.299]
[1641136367175,0.07787834,47215.0,47214.0,0.18]
[1641136367773,0.07787834,47215.0,47214.0,0.119]
[1641136367774,0.26687834,47215.0,47214.0,0.119]
[1641136367974,0.26687834,47215.0,47214.0,0.299]
[1641136368476,0.26687834,47215.0,47214.0,0.119]
[1641136368776,0.26687834,47215.0,47214.0,0.299]
[1641136369978,0.24787834,47215.0,47214.0,0.338]
[1641136371279,0.07787834,47215.0,47214.0,0.18]
[1641136371879,0.25887834,47215.0,47214.0,0.359]
[1641136373181,0.07787834,47215.0,47214.0,0.18]
[1641136373982,0.25887834,47215.0,47214.0,0.36]
[1641136375280,0.07787834,47215.0,47214.0,0.18]
[1641136375881,0.07787834,47215.0,47214.0,0.367]
[1641136377383,0.07787834,47215.0,47214.0,0.18]
[1641136378084,0.07787834,47215.0,47214.0,0.368]
[1641136379283,0.07787834,47215.0,47214.0,0.18]
[1641136379883,0.07787834,47215.0,47214.0,0.369]
[1641136381190,0.07787834,47215.0,47214.0,0.18]
[1641136381890,0.07787834,47215.0,47214.0,0.368]
[1641136383389,0.07787834,47215.0,47214.0,0.18]
[1641136383889,0.07787834,47215.0,47214.0,0.368]
[1641136385293,0.07787834,47215.0,47214.0,0.18]
[1641136385897,0.07787834,47215.0,47214.0,0.367]
[1641136387308,0.07787834,47215.0,47214.0,0.18]
[1641136387910,0.07787834,47215.0,47214.0,0.367]
[1641136389313,0.07787834,47215.0,47214.0,0.18]
[1641136389711,0.07787834,47215.0,47214.0,0.53452751]
[1641136389910,0.07787834,47215.0,47214.0,0.72152751]
[1641136390514,0.07787834,47215.0,47214.0,0.90152751]
[1641136390718,1.44278666,47217.0,47214.0,0.90152751]
[1641136390917,1.44278666,47217.0,47214.0,0.72152751]
[1641136391317,1.44278666,47217.0,47216.0,0.18]
[1641136391516,1.44278666,47217.0,47216.0,0.06007]
[1641136391715,1.44278666,47218.0,47216.0,0.06007]
[1641136391913,1.44278666,47218.0,47217.0,0.18]
[1641136392514,1.44278666,47218.0,47217.0,0.32033567]
[1641136392715,1.52689196,47218.0,47217.0,0.32033567]
[1641136393215,0.0841053,47218.0,47217.0,0.90903944]
[1641136393714,1.44278666,47222.0,47217.0,0.90903944]
[1641136393917,0.009794,47226.0,47221.0,0.18]
[1641136394313,0.009794,47226.0,47224.0,0.18]
[1641136395616,0.22123256,47225.0,47224.0,0.18]
[1641136396016,0.22123256,47225.0,47224.0,0.282]
[1641136397217,0.10087605,47225.0,47224.0,0.18]
[1641136398017,0.10087605,47225.0,47224.0,0.293]
[1641136399022,0.10087605,47225.0,47224.0,0.113]
[1641136399422,0.10087605,47225.0,47222.0,0.14033567]
[1641136399621,0.22123224,47225.0,47224.0,0.18]
[1641136399824,0.10087605,47225.0,47224.0,0.18]
[1641136400224,0.10087605,47225.0,47222.0,0.21733567]
[1641136400422,0.22123198,47225.0,47223.0,0.18]
[1641136400822,0.10087605,47225.0,47223.0,0.18]
[1641136401226,0.10087605,47225.0,47222.0,0.14033567]
[1641136401425,0.10087605,47225.0,47222.0,0.32033567]
[1641136402027,0.10087605,47225.0,47222.0,0.43133567]
[1641136403326,0.10087605,47225.0,47222.0,0.32033567]
[1641136404130,0.10087605,47225.0,47222.0,0.44533567]
[1641136405328,0.10087605,47225.0,47222.0,0.32033567]
[1641136405531,0.10087605,47225.0,47222.0,0.14033567]
[1641136405731,0.10087605,47225.0,47224.0,0.18]
[1641136406829,0.10087605,47225.0,47222.0,0.30202567]
[1641136407030,0.10087605,47225.0,47224.0,0.18]
[1641136408032,0.10087605,47225.0,47224.0,0.355]
[1641136409934,0.10087605,47225.0,47224.0,0.18]
[1641136410136,0.10087605,47225.0,47224.0,0.355]
[1641136412337,1.54360355,47225.0,47224.0,0.355]
[1641136413438,1.54360355,47225.0,47224.0,0.18]
[1641136414145,1.54360355,47225.0,47224.0,0.355]
[1641136414747,1.54360355,47225.0,47224.0,0.175]
[1641136415348,1.54360355,47225.0,47222.0,0.49425978]
[1641136415750,0.02118214,47223.0,47222.0,0.35392411]
[1641136415950,0.2671422,47223.0,47221.0,0.35392411]
[1641136416149,0.2671422,47223.0,47218.0,0.82557369]